fUST/lending_fUST_20250203
["ID","MTS","AMOUNT","RATE_DAILY","PERIOD"]
[351428832,1738570233151,-500.0,0.00016438,2]
[351428833,1738570233161,-500.0,0.00016438,2]
[351428834,1738570233172,-500.0,0.00016438,2]
[351428835,1738570233182,-1097.33,0.00016438,2]
[351428836,1738570233193,-923.55,0.00016438,2]
[351428837,1738570233203,-500.0,0.00016438,2]
[351428838,1738570233213,-1145.81,0.00016438,2]
[351428839,1738570233224,-500.0,0.00016438,2]
[351428840,1738570233233,-940.65,0.00016438,2]
[351428841,1738570233243,-500.0,0.00016438,2]
[351428842,1738570233252,-500.0,0.00016438,2]
[351428843,1738570233262,-500.0,0.00016438,2]
[351428844,1738570233271,-517.73,0.00016438,2]
[351428845,1738570233281,-500.0,0.00016438,2]
[351428846,1738570233292,-500.0,0.00016438,2]
[351428847,1738570233302,-545.81100596,0.00016438,5]
[351428848,1738570233312,-500.0,0.00016438,2]
[351428849,1738570233322,-3472.04,0.00016438,2]
[351428850,1738570233332,-500.0,0.00016438,2]
[351428851,1738570233342,-500.0,0.00016438,2]
[351428852,1738570233352,-500.0,0.00016438,2]
[351428853,1738570233361,-500.0,0.00016438,2]
[351428854,1738570233372,-500.0,0.00016438,2]
[351428855,1738570233381,-500.0,0.00016438,2]
[351428856,1738570233390,-500.0,0.00016438,2]
[351428857,1738570233400,-354.5475049,0.000165,2]
[351428858,1738570233411,-354.5475049,0.000165,2]
[351428859,1738570233421,-500.0,0.00016575,2]
[351428860,1738570233431,-500.0,0.00016575,2]
[351428861,1738570233440,-500.0,0.00016575,2]
[351428862,1738570233451,-500.0,0.00016575,2]
[351428863,1738570233460,-500.0,0.00016575,2]
[351428864,1738570233470,-500.0,0.00016575,2]
[351428865,1738570233479,-500.0,0.00016575,2]
[351428866,1738570233489,-500.0,0.00016575,2]
[351428867,1738570233498,-500.0,0.00016575,2]
[351428868,1738570233508,-504.42,0.00016575,2]
[351428869,1738570233517,-609.80718919,0.00016575,2]
[351428870,1738570233526,-500.0,0.00016575,2]
[351428871,1738570233535,-500.0,0.00016575,2]
[351428872,1738570233544,-500.0,0.00016575,2]
[351428873,1738570233554,-516.06,0.00016575,2]
[351428874,1738570233562,-252.89277903,0.00016575,2]
[351428875,1738570233569,-585.49,0.00016575,2]
[351428876,1738570233579,-500.0,0.00016575,2]
[351428877,1738570233587,-500.0,0.00016575,2]
[351428878,1738570233597,-500.0,0.00016575,2]
[351428879,1738570233604,-500.0,0.00016575,2]
[351428880,1738570233613,-704.36,0.00016575,2]
[351428881,1738570233623,-1478.33,0.00016575,2]
[351428882,1738570233631,-639.86,0.00016575,2]
[351428883,1738570233639,-500.0,0.00016575,2]
[351428884,1738570233648,-500.0,0.00016575,2]
[351428885,1738570233658,-500.0,0.00016575,2]
[351428886,1738570233668,-500.0,0.00016575,2]
[351428887,1738570233678,-1164.75,0.00016575,2]
[351428888,1738570233692,-21195.28,0.00016575,2]
[351428889,1738570233703,-154.04779881,0.00016575,2]
[351428890,1738570233716,-561.86,0.00016575,2]
[351428891,1738570233726,-5007.55,0.00016575,2]
[351428892,1738570233736,-624.09,0.00016575,2]
[351428893,1738570233747,-500.0,0.00016575,2]
[351428894,1738570233757,-500.0,0.00016575,2]
[351428895,1738570233767,-500.0,0.00016575,2]
[351428896,1738570233776,-691.05,0.00016575,2]
[351428897,1738570233789,-1471.69,0.00016575,2]
[351428898,1738570233799,-500.0,0.00016575,2]
[351428899,1738570233809,-500.0,0.00016575,2]
[351428900,1738570233819,-511.53,0.00016575,2]
[351428901,1738570233829,-389.96516624,0.00016575,2]
[351428902,1738570233839,-500.0,0.00016575,2]
[351428903,1738570233849,-500.0,0.00016575,2]
[351428904,1738570233859,-630.15,0.00016575,2]
[351428905,1738570233869,-500.0,0.00016575,2]
[351428906,1738570233880,-500.0,0.00016575,2]
[351428907,1738570233890,-2334.13,0.00016575,2]
[351428908,1738570233900,-500.0,0.00016575,2]
[351428909,1738570233912,-500.0,0.00016575,2]
[351428910,1738570233922,-1097.33,0.00016575,2]
[351428911,1738570233933,-923.55,0.00016575,2]
[351428912,1738570233944,-500.0,0.00016575,2]
[351428913,1738570233955,-1145.81,0.00016575,2]
[351428914,1738570233965,-500.0,0.00016575,2]
[351428915,1738570233975,-940.65,0.00016575,2]
[351428916,1738570233985,-517.73,0.00016575,2]
[351428917,1738570233995,-500.0,0.00016575,2]
[351428918,1738570234005,-500.0,0.00016575,2]
[351428919,1738570234016,-3472.04,0.00016575,2]
[351428920,1738570234027,-500.0,0.00016575,2]
[351428921,1738570234036,-500.0,0.00016575,2]
[351428922,1738570234046,-500.0,0.00016575,2]
[351428923,1738570234056,-500.0,0.00016575,2]
[351428924,1738570234066,-500.0,0.00016575,2]
[351428925,1738570234076,-500.0,0.00016575,2]
[351428926,1738570234085,-211.18509241,0.00016599,5]
[351428927,1738570234096,-175.11055212,0.00016612,2]
[351428928,1738570234106,-160.709,0.0001663,2]
[351428929,1738570234115,-486.78292497,0.00016678,2]
[351428930,1738570234125,-373.83392797,0.00016711,2]
[351428931,1738570234134,-500.0,0.00016712,2]
[351428932,1738570234145,-543.25809066,0.00016712,2]
[351428933,1738570234157,-500.0,0.00016712,2]
[351428934,1738570234167,-500.0,0.00016712,2]
[351428935,1738570234177,-500.0,0.00016712,2]
[351428936,1738570234186,-643.45018988,0.00016712,2]
[351428937,1738570234198,-500.0,0.00016712,2]
[351428938,1738570234207,-500.0,0.00016712,2]
[351428939,1738570234218,-504.42,0.00016712,2]
[351428940,1738570234228,-500.0,0.00016712,2]
[351428941,1738570234237,-500.0,0.00016712,2]
[351428942,1738570234246,-500.0,0.00016712,2]
[351428943,1738570234256,-516.06,0.00016712,2]
[351428944,1738570234265,-585.49,0.00016712,2]
[351428945,1738570234275,-197.16541161,0.00016712,2]
[351428946,1738570234284,-500.0,0.00016712,2]
[351428947,1738570234294,-500.0,0.00016712,2]
[351428948,1738570234304,-500.0,0.00016712,2]
[351428949,1738570234313,-704.36,0.00016712,2]
[351428950,1738570234323,-1478.33,0.00016712,2]
[351428951,1738570234333,-639.86,0.00016712,2]
[351428952,1738570234343,-500.0,0.00016712,2]
[351428953,1738570234352,-577.86835939,0.00016712,2]
[351428954,1738570234362,-500.0,0.00016712,2]
[351428955,1738570234372,-500.0,0.00016712,2]
[351428956,1738570234381,-1164.75,0.00016712,2]
[351428957,1738570234391,-21195.28,0.00016712,2]
[351428958,1738570234401,-561.86,0.00016712,2]
[351428959,1738570234413,-5007.55,0.00016712,2]
[351428960,1738570234422,-624.09,0.00016712,2]
[351428961,1738570234432,-500.0,0.00016712,2]
[351428962,1738570234442,-500.0,0.00016712,2]
[351428963,1738570234452,-500.0,0.00016712,2]
[351428964,1738570234461,-691.05,0.00016712,2]
[351428965,1738570234471,-1471.69,0.00016712,2]
[351428966,1738570234480,-500.0,0.00016712,2]
[351428967,1738570234490,-500.0,0.00016712,2]
[351428968,1738570234499,-511.53,0.00016712,2]
[351428969,1738570234509,-531.3,0.00016712,2]
[351428970,1738570234529,-500.0,0.00016712,2]
[351428971,1738570234539,-630.15,0.00016712,2]
[351428972,1738570234549,-500.0,0.00016712,2]
[351428973,1738570234558,-500.0,0.00016712,2]
[351428974,1738570234568,-2334.13,0.00016712,2]
[351428975,1738570234578,-500.0,0.00016712,2]
[351428976,1738570234589,-500.0,0.00016712,2]
[351428977,1738570234599,-1097.33,0.00016712,2]
[351428978,1738570234609,-923.55,0.00016712,2]
[351428979,1738570234620,-500.0,0.00016712,2]
[351428980,1738570234631,-1145.81,0.00016712,2]
[351428981,1738570234640,-500.0,0.00016712,2]
[351428982,1738570234650,-940.65,0.00016712,2]
[351428983,1738570234663,-517.73,0.00016712,2]
[351428984,1738570234672,-500.0,0.00016712,2]
[351428985,1738570234682,-500.0,0.00016712,2]
[351428986,1738570234692,-3472.04,0.00016712,2]
[351428987,1738570234702,-500.0,0.00016712,2]
[351428988,1738570234713,-500.0,0.00016712,2]
[351428989,1738570234723,-500.0,0.00016712,2]
[351428990,1738570234732,-500.0,0.00016712,2]
[351428991,1738570234742,-500.0,0.00016712,2]
[351428992,1738570234751,-500.0,0.00016712,2]
[351428993,1738570234760,-154.4720971,0.000168,2]
[351428994,1738570234769,-318.8548149,0.000168,2]
[351428995,1738570234779,-500.0,0.00016849,2]
[351428996,1738570234791,-500.0,0.00016849,2]
[351428997,1738570234801,-500.0,0.00016849,2]
[351428998,1738570234810,-550.01,0.00016849,2]
[351428999,1738570234821,-500.0,0.00016849,2]
[351429000,1738570234831,-500.0,0.00016849,2]
[351429001,1738570234840,-504.42,0.00016849,2]
[351429002,1738570234850,-500.0,0.00016849,2]
[351429003,1738570234861,-500.0,0.00016849,2]
[351429004,1738570234871,-548.2470976,0.00016849,2]
[351429005,1738570234882,-516.06,0.00016849,2]
[351429006,1738570234891,-585.49,0.00016849,2]
[351429007,1738570234902,-500.0,0.00016849,2]
[351429008,1738570234913,-500.0,0.00016849,2]
[351429009,1738570234923,-500.0,0.00016849,2]
[351429010,1738570234932,-704.36,0.00016849,2]
[351429011,1738570234943,-1478.33,0.00016849,2]
[351429012,1738570234952,-639.86,0.00016849,2]
[351429013,1738570234962,-500.0,0.00016849,2]
[351429014,1738570234971,-500.0,0.00016849,2]
[351429015,1738570234981,-500.0,0.00016849,2]
[351429016,1738570234990,-1164.75,0.00016849,2]
[351429017,1738570235000,-21195.28,0.00016849,2]
[351429018,1738570235009,-561.86,0.00016849,2]
[351429019,1738570235019,-5007.55,0.00016849,2]
[351429020,1738570235028,-624.09,0.00016849,2]
[351429021,1738570235037,-500.0,0.00016849,2]
[351429022,1738570235046,-500.0,0.00016849,2]
[351429023,1738570235056,-500.0,0.00016849,2]
[351429024,1738570235065,-691.05,0.00016849,2]
[351429025,1738570235074,-500.0,0.00016849,2]
[351429026,1738570235084,-1471.69,0.00016849,2]
[351429027,1738570235094,-500.0,0.00016849,2]
[351429028,1738570235104,-511.53,0.00016849,2]
[351429029,1738570235114,-500.0,0.00016849,2]
[351429030,1738570235123,-630.15,0.00016849,2]
[351429031,1738570235133,-500.0,0.00016849,2]
[351429032,1738570235143,-500.0,0.00016849,2]
[351429033,1738570235154,-2334.13,0.00016849,2]
[351429034,1738570235165,-309.10614274,0.00016849,2]
[351429035,1738570235174,-500.0,0.00016849,2]
[351429036,1738570235183,-1097.33,0.00016849,2]
[351429037,1738570235193,-923.55,0.00016849,2]
[351429038,1738570235202,-500.0,0.00016849,2]
[351429039,1738570235211,-1145.81,0.00016849,2]
[351429040,1738570235221,-500.0,0.00016849,2]
[351429041,1738570235230,-940.65,0.00016849,2]
[351429042,1738570235239,-517.73,0.00016849,2]
[351429043,1738570235248,-500.0,0.00016849,2]
[351429044,1738570235258,-3472.04,0.00016849,2]
[351429045,1738570235268,-150.78092989,0.00016849,2]
[351429046,1738570235277,-500.0,0.00016849,2]
[351429047,1738570235287,-500.0,0.00016849,2]
[351429048,1738570235297,-500.0,0.00016849,2]
[351429049,1738570235307,-500.0,0.00016849,2]
[351429050,1738570235316,-500.0,0.00016849,2]
[351429051,1738570235325,-500.0,0.00016849,2]
[351429052,1738570235335,-500.0,0.00016904,2]
[351429053,1738570235344,-488.176214,0.00016986,2]
[351429054,1738570235354,-636.65,0.00016986,2]
[351429055,1738570235363,-500.0,0.00016986,2]
[351429056,1738570235372,-500.0,0.00016986,2]
[351429057,1738570235382,-500.0,0.00016986,2]
[351429058,1738570235391,-504.42,0.00016986,2]
[351429059,1738570235401,-500.0,0.00016986,2]
[351429060,1738570235411,-500.0,0.00016986,2]
[351429061,1738570235421,-516.06,0.00016986,2]
[351429062,1738570235432,-585.49,0.00016986,2]
[351429063,1738570235441,-503.00907517,0.00016986,2]
[351429064,1738570235451,-500.0,0.00016986,2]
[351429065,1738570235460,-500.0,0.00016986,2]
[351429066,1738570235469,-704.36,0.00016986,2]
[351429067,1738570235479,-1478.33,0.00016986,2]
[351429068,1738570235488,-639.86,0.00016986,2]
[351429069,1738570235498,-500.0,0.00016986,2]
[351429070,1738570235508,-500.0,0.00016986,2]
[351429071,1738570235517,-500.0,0.00016986,2]
[351429072,1738570235527,-1164.75,0.00016986,2]
[351429073,1738570235537,-21195.28,0.00016986,2]
[351429074,1738570235547,-561.86,0.00016986,2]
[351429075,1738570235557,-5007.55,0.00016986,2]
[351429076,1738570235567,-624.09,0.00016986,2]
[351429077,1738570235576,-500.0,0.00016986,2]
[351429078,1738570235587,-500.0,0.00016986,2]
[351429079,1738570235596,-500.02,0.00016986,2]
[351429080,1738570235605,-691.05,0.00016986,2]
[351429081,1738570235615,-500.0,0.00016986,2]
[351429082,1738570235625,-1471.69,0.00016986,2]
[351429083,1738570235636,-500.0,0.00016986,2]
[351429084,1738570235647,-511.53,0.00016986,2]
[351429085,1738570235659,-500.0,0.00016986,2]
[351429086,1738570235669,-630.15,0.00016986,2]
[351429087,1738570235680,-500.0,0.00016986,2]
[351429088,1738570235689,-500.0,0.00016986,2]
[351429089,1738570235700,-2334.13,0.00016986,2]
[351429090,1738570235712,-500.0,0.00016986,2]
[351429091,1738570235722,-1097.33,0.00016986,2]
[351429092,1738570235733,-923.55,0.00016986,2]
[351429093,1738570235745,-500.0,0.00016986,2]
[351429094,1738570235755,-1145.81,0.00016986,2]
[351429095,1738570235765,-500.0,0.00016986,2]
[351429096,1738570235774,-940.65,0.00016986,2]
[351429097,1738570235785,-517.73,0.00016986,2]
[351429098,1738570235795,-500.0,0.00016986,2]
[351429099,1738570235806,-3472.04,0.00016986,2]
[351429100,1738570235815,-500.0,0.00016986,2]
[351429101,1738570235828,-500.0,0.00016986,2]
[351429102,1738570235837,-500.0,0.00016986,2]
[351429103,1738570235847,-500.0,0.00016986,2]
[351429104,1738570235856,-500.0,0.00016986,2]
[351429105,1738570235866,-500.0,0.00016986,2]
[351429106,1738570235876,-415.4458947,0.00016986,2]
[351429107,1738570235885,-1000.0,0.00017,17]
[351429108,1738570235896,-10000.0,0.00017,3]
[351429109,1738570235907,-151.0,0.000171,2]
[351429110,1738570235917,-153.0,0.00017118,2]
[351429111,1738570235927,-153.0,0.00017118,2]
[351429112,1738570235936,-153.0,0.00017118,2]
[351429113,1738570236056,-153.0,0.00017118,2]
[351429114,1738570236080,-153.0,0.00017118,2]
[351429115,1738570236089,-153.0,0.00017118,2]
[351429116,1738570236099,-153.0,0.00017118,2]
[351429117,1738570236109,-153.0,0.00017118,2]
[351429118,1738570236119,-153.0,0.00017118,2]
[351429119,1738570236128,-153.0,0.00017118,2]
[351429120,1738570236137,-153.0,0.00017118,2]
[351429121,1738570236147,-153.0,0.00017118,2]
[351429122,1738570236158,-153.0,0.00017118,2]
[351429123,1738570236168,-153.0,0.00017118,2]
[351429124,1738570236177,-153.0,0.00017118,2]
[351429125,1738570236187,-153.0,0.00017118,2]
[351429126,1738570236196,-153.0,0.00017118,2]
[351429127,1738570236213,-153.0,0.00017118,2]
[351429128,1738570236228,-153.0,0.00017118,2]
[351429129,1738570236238,-153.0,0.00017118,2]
[351429130,1738570236249,-153.0,0.00017118,2]
[351429131,1738570236260,-153.0,0.00017118,2]
[351429132,1738570236271,-153.0,0.00017118,2]
[351429133,1738570236282,-153.0,0.00017118,2]
[351429134,1738570236292,-153.0,0.00017118,2]
[351429135,1738570236302,-153.0,0.00017118,2]
[351429136,1738570236313,-153.0,0.00017118,2]
[351429137,1738570236323,-153.0,0.00017118,2]
[351429138,1738570236333,-153.0,0.00017118,2]
[351429139,1738570236343,-153.0,0.00017118,2]
[351429140,1738570236354,-153.0,0.00017118,2]
[351429141,1738570236365,-153.0,0.00017118,2]
[351429142,1738570236375,-153.0,0.00017118,2]
[351429143,1738570236385,-153.0,0.00017118,2]
[351429144,1738570236396,-153.0,0.00017118,2]
[351429145,1738570236406,-153.0,0.00017118,2]
[351429146,1738570236417,-153.0,0.00017118,2]
[351429147,1738570236427,-153.0,0.00017118,2]
[351429148,1738570236437,-153.0,0.00017118,2]
[351429149,1738570236447,-153.0,0.00017118,2]
[351429150,1738570236457,-153.0,0.00017118,2]
[351429151,1738570236467,-153.0,0.00017118,2]
[351429152,1738570236477,-153.0,0.00017118,2]
[351429153,1738570236487,-153.0,0.00017118,2]
[351429154,1738570236497,-153.0,0.00017118,2]
[351429155,1738570236507,-153.0,0.00017118,2]
[351429156,1738570236517,-153.0,0.00017118,2]
[351429157,1738570236527,-153.0,0.00017118,2]
[351429158,1738570236537,-153.0,0.00017118,2]
[351429159,1738570236547,-153.0,0.00017118,2]
[351429160,1738570236556,-153.0,0.00017118,2]
[351429161,1738570236567,-153.0,0.00017118,2]
[351429162,1738570236577,-153.0,0.00017118,2]
[351429163,1738570236587,-424.07823243,0.00017122,2]
[351429164,1738570236596,-359.195,0.00017123,2]
[351429165,1738570236606,-500.0,0.00017123,2]
[351429166,1738570236617,-500.0,0.00017123,2]
[351429167,1738570236627,-500.0,0.00017123,2]
[351429168,1738570236637,-504.42,0.00017123,2]
[351429169,1738570236647,-500.0,0.00017123,2]
[351429170,1738570236660,-500.0,0.00017123,2]
[351429171,1738570236670,-516.06,0.00017123,2]
[351429172,1738570236680,-585.49,0.00017123,2]
[351429173,1738570236690,-500.0,0.00017123,2]
[351429174,1738570236702,-500.0,0.00017123,2]
[351429175,1738570236714,-704.36,0.00017123,2]
[351429176,1738570236724,-1478.33,0.00017123,2]
[351429177,1738570236734,-639.86,0.00017123,2]
[351429178,1738570236746,-500.0,0.00017123,2]
[351429179,1738570236756,-500.0,0.00017123,2]
[351429180,1738570236766,-162.24914961,0.00017123,2]
[351429181,1738570236780,-1164.75,0.00017123,2]
[351429182,1738570236790,-21195.28,0.00017123,2]
[351429183,1738570236800,-561.86,0.00017123,2]
[351429184,1738570236810,-5007.55,0.00017123,2]
[351429185,1738570236820,-624.09,0.00017123,2]
[351429186,1738570236830,-500.0,0.00017123,2]
[351429187,1738570236840,-500.0,0.00017123,2]
[351429188,1738570236850,-691.05,0.00017123,2]
[351429189,1738570236859,-500.0,0.00017123,2]
[351429190,1738570236869,-1471.69,0.00017123,2]
[351429191,1738570236878,-500.0,0.00017123,2]
[351429192,1738570236889,-511.53,0.00017123,2]
[351429193,1738570236899,-500.0,0.00017123,2]
[351429194,1738570236911,-630.15,0.00017123,2]
[351429195,1738570236922,-485.94703421,0.00017123,2]
[351429196,1738570236933,-500.0,0.00017123,2]
[351429197,1738570236944,-2334.13,0.00017123,2]
[351429198,1738570236953,-500.0,0.00017123,2]
[351429199,1738570236963,-1097.33,0.00017123,2]
[351429200,1738570236973,-923.55,0.00017123,2]
[351429201,1738570236983,-500.0,0.00017123,2]
[351429202,1738570236993,-1145.81,0.00017123,2]
[351429203,1738570237003,-343.76,0.00017123,2]
[351429204,1738570237013,-940.65,0.00017123,2]
[351429205,1738570237022,-517.73,0.00017123,2]
[351429206,1738570237032,-500.0,0.00017123,2]
[351429207,1738570237041,-3472.04,0.00017123,2]
[351429208,1738570237050,-500.0,0.00017123,2]
[351429209,1738570237059,-500.0,0.00017123,2]
[351429210,1738570237069,-500.0,0.00017123,2]
[351429211,1738570237079,-500.0,0.00017123,2]
[351429212,1738570237088,-500.0,0.00017123,2]
[351429213,1738570237098,-500.0,0.00017123,2]
[351429214,1738570237108,-13257.15227901,0.0001717,2]
[351429215,1738570237118,-310.6606586,0.00017178,2]
[351429216,1738570237128,-151.0,0.000172,2]
[351429217,1738570237138,-500.0,0.0001726,2]
[351429218,1738570237147,-500.0,0.0001726,2]
[351429219,1738570237159,-500.0,0.0001726,2]
[351429220,1738570237168,-504.42,0.0001726,2]
[351429221,1738570237178,-500.0,0.0001726,2]
[351429222,1738570237188,-500.0,0.0001726,2]
[351429223,1738570237197,-516.06,0.0001726,2]
[351429224,1738570237207,-585.49,0.0001726,2]
[351429225,1738570237216,-500.0,0.0001726,2]
[351429226,1738570237226,-500.0,0.0001726,2]
[351429227,1738570237236,-704.36,0.0001726,2]
[351429228,1738570237245,-1478.33,0.0001726,2]
[351429229,1738570237255,-639.86,0.0001726,2]
[351429230,1738570237265,-500.0,0.0001726,2]
[351429231,1738570237275,-500.0,0.0001726,2]
[351429232,1738570237284,-1164.75,0.0001726,2]
[351429233,1738570237294,-21195.28,0.0001726,2]
[351429234,1738570237304,-561.86,0.0001726,2]
[351429235,1738570237313,-5007.55,0.0001726,2]
[351429236,1738570237323,-624.09,0.0001726,2]
[351429237,1738570237332,-500.0,0.0001726,2]
[351429238,1738570237341,-500.0,0.0001726,2]
[351429239,1738570237351,-691.05,0.0001726,2]
[351429240,1738570237360,-500.0,0.0001726,2]
[351429241,1738570237369,-1471.69,0.0001726,2]
[351429242,1738570237379,-500.0,0.0001726,2]
[351429243,1738570237388,-511.53,0.0001726,2]
[351429245,1738570237399,-500.0,0.0001726,2]
[351429247,1738570237411,-630.15,0.0001726,2]
[351429249,1738570237421,-500.0,0.0001726,2]
[351429251,1738570237431,-2334.13,0.0001726,2]
[351429253,1738570237441,-500.0,0.0001726,2]
[351429256,1738570237451,-1097.33,0.0001726,2]
[351429259,1738570237461,-923.55,0.0001726,2]
[351429261,1738570237471,-500.0,0.0001726,2]
[351429263,1738570237481,-1145.81,0.0001726,2]
[351429264,1738570237491,-940.65,0.0001726,2]
[351429266,1738570237501,-517.73,0.0001726,2]
[351429268,1738570237510,-500.0,0.0001726,2]
[351429271,1738570237520,-3472.04,0.0001726,2]
[351429272,1738570237530,-500.0,0.0001726,2]
[351429273,1738570237540,-500.0,0.0001726,2]
[351429274,1738570237550,-500.0,0.0001726,2]
[351429275,1738570237559,-500.0,0.0001726,2]
[351429276,1738570237569,-500.0,0.0001726,2]
[351429278,1738570237579,-500.0,0.0001726,2]
[351429280,1738570237590,-6158.29290672,0.000173,2]
[351429282,1738570237599,-151.0,0.000173,2]
[351429284,1738570237609,-832.2191354,0.00017324,2]
[351429286,1738570237619,-153.0,0.00017333,2]
[351429288,1738570237629,-153.0,0.00017333,2]
[351429290,1738570237639,-153.0,0.00017333,2]
[351429291,1738570237648,-153.0,0.00017333,2]
[351429293,1738570237660,-153.0,0.00017333,2]
[351429295,1738570237670,-153.0,0.00017333,2]
[351429297,1738570237679,-153.0,0.00017333,2]
[351429299,1738570237689,-153.0,0.00017333,2]
[351429301,1738570237699,-153.0,0.00017333,2]
[351429302,1738570237711,-153.0,0.00017333,2]
[351429304,1738570237721,-153.0,0.00017333,2]
[351429305,1738570237731,-153.0,0.00017333,2]
[351429308,1738570237743,-153.0,0.00017333,2]
[351429309,1738570237755,-153.0,0.00017333,2]
[351429310,1738570237765,-153.0,0.00017333,2]
[351429311,1738570237775,-153.0,0.00017333,2]
[351429312,1738570237786,-153.0,0.00017333,2]
[351429314,1738570237795,-153.0,0.00017333,2]
[351429316,1738570237806,-153.0,0.00017333,2]
[351429318,1738570237815,-153.0,0.00017333,2]
[351429320,1738570237825,-153.0,0.00017333,2]
[351429322,1738570237835,-153.0,0.00017333,2]
[351429324,1738570237845,-153.0,0.00017333,2]
[351429325,1738570237855,-153.0,0.00017333,2]
[351429326,1738570237866,-153.0,0.00017333,2]
[351429327,1738570237877,-153.0,0.00017333,2]
[351429328,1738570237887,-153.0,0.00017333,2]
[351429329,1738570237897,-153.0,0.00017333,2]
[351429330,1738570237911,-153.0,0.00017333,2]
[351429331,1738570237921,-153.0,0.00017333,2]
[351429332,1738570237931,-153.0,0.00017333,2]
[351429333,1738570237941,-153.0,0.00017333,2]
[351429334,1738570237951,-153.0,0.00017333,2]
[351429335,1738570237961,-153.0,0.00017333,2]
[351429336,1738570237971,-153.0,0.00017333,2]
[351429337,1738570237981,-153.0,0.00017333,2]
[351429338,1738570237992,-153.0,0.00017333,2]
[351429339,1738570238003,-153.0,0.00017333,2]
[351429340,1738570238014,-153.0,0.00017333,2]
[351429341,1738570238025,-153.0,0.00017333,2]
[351429342,1738570238035,-153.0,0.00017333,2]
[351429343,1738570238045,-153.0,0.00017333,2]
[351429344,1738570238055,-500.0,0.00017397,2]
[351429345,1738570238066,-500.0,0.00017397,2]
[351429346,1738570238076,-291.65462422,0.00017397,2]
[351429347,1738570238086,-504.42,0.00017397,2]
[351429349,1738570238096,-500.0,0.00017397,2]
[351429351,1738570238106,-500.0,0.00017397,2]
[351429353,1738570238117,-516.06,0.00017397,2]
[351429355,1738570238127,-585.49,0.00017397,2]
[351429357,1738570238136,-500.0,0.00017397,2]
[351429359,1738570238146,-500.0,0.00017397,2]
[351429361,1738570238157,-704.36,0.00017397,2]
[351429363,1738570238167,-1478.33,0.00017397,2]
[351429365,1738570238176,-639.86,0.00017397,2]
[351429367,1738570238187,-500.0,0.00017397,2]
[351429368,1738570238197,-500.0,0.00017397,2]
[351429369,1738570238207,-1164.75,0.00017397,2]
[351429370,1738570238216,-21195.28,0.00017397,2]
[351429371,1738570238226,-561.86,0.00017397,2]
[351429372,1738570238237,-5007.55,0.00017397,2]
[351429373,1738570238247,-624.09,0.00017397,2]
[351429374,1738570238257,-500.0,0.00017397,2]
[351429375,1738570238267,-500.0,0.00017397,2]
[351429376,1738570238277,-691.05,0.00017397,2]
[351429377,1738570238287,-500.0,0.00017397,2]